Workbook

Sheet Лист1
J1: Приложение 1
I2: к постановлению администрации города Усолье-Сибирское
I3: от 26.12.2025 г. №2474-па
I5: «Приложение 3 к муниципальной программе города Усолье-Сибирское «Обеспечение населения доступным жильем» на 2019-2027 годы
B7: Ресурсное обеспечение реализации муниципальной программы города Усолье-Сибирское «Обеспечение населения доступным жильем» на 2019-2027 годы (далее - Программа)
B9: Наименование программы, подпрограммы, основного мероприятия, мероприятия, проекта | C9: Ответсвенный исполниетль, Программы, соисполнители программы, участники Программы, участники подпрограммы | D9: Источник финансирования | E9: Общий объем финансирования, руб. | F9: Объем финансирования, руб.
F10: 2019 год | G10: 2020 год | H10: 2021 год | I10: 2022 год | J10: 2023 год | K10: 2024 год | L10: 2025 год | M10: 2026 год | N10: 2027 год
B11: 1 | C11: 2 | D11: 3 | E11: 4 | F11: 5 | G11: 6 | H11: 7 | I11: 8 | J11: 9 | K11: 10 | L11: 11 | M11: 12 | N11: 13
B12: Муниципальная программа города Усолье-Сибирское «Обеспечение населения доспупным жильем» на 2019-2027 годы | C12: Комитет по городскому хозяйству администрации города | D12: Всего: | E12: =SUM(F12:N12) -> 2,629,123,999.85 | F12: =F13+F14+F15+F16 -> 4,755,095.00 | G12: =G13+G14+G15+G16 -> 15,484,733.44 | H12: 69,185,584.77 | I12: 532,912,319.66 | J12: 342,092,630.20 | K12: 811,632,179.66 | L12: =L13+L14+L15+L16 -> 210,797,260.12 | M12: 358,321,427.00 | N12: 283,942,770.00
D13: Местный бюджет | E13: =SUM(F13:N13) -> 261,292,518.99 | F13: =F18+F35+F47 -> 1,266,645.77 | G13: 3,220,824.56 | H13: 8,390,213.33 | I13: 8,602,042.05 | J13: 7,422,656.78 | K13: 109,330,328.10 | L13: 69,138,911.40 | M13: =M18+M35+M47 -> 30,031,127.00 | N13: 23,889,770.00
D14: Областной бюджет | E14: 726,639,987.39 | F14: =F19+F36 -> 1,997,892.74 | G14: 10,862,594.65 | H14: 0.00 | I14: 21,933,500.00 | J14: 17,064,100.00 | K14: 3,974,100.00 | L14: 82,464,500.00 | M14: =M19+M36 -> 328,290,300.00 | N14: 260,053,000.00
D15: Средства Фонда | E15: 1,638,299,622.75 | F15: =F20 -> 0.00 | G15: =G20 -> 0.00 | H15: 60,795,371.44 | I15: 502,376,777.61 | J15: =J20 -> 317,605,873.42 | K15: =K20 -> 698,327,751.56 | L15: =L20 -> 59,193,848.72 | M15: =M20 -> 0.00 | N15: 0.00
D16: Федеральный бюджет | E16: =SUM(F16:N16) -> 2,891,870.72 | F16: =F37 -> 1,490,556.49 | G16: =G37 -> 1,401,314.23 | H16: 0.00 | I16: 0.00 | J16: 0.00 | K16: 0.00 | L16: =L37 -> 0.00 | M16: 0.00 | N16: 0.00
B17: Подпрограмма 1 «Переселение граждан из аварийного жилищного фонда в городе Усолье-Сибирское» на 2019-2027 годы | C17: Отдел по управлению жилищным фондом комитета по городскому хозяйству администрации города | D17: Всего: | E17: 2,609,044,171.41 | F17: =F18+F19+F20 -> 160,000.00 | G17: =G18+G19+G20 -> 0.00 | H17: 69,185,584.77 | I17: 532,912,319.66 | J17: 342,092,630.20 | K17: 811,632,179.66 | L17: 210,797,260.12 | M17: =M18+M19+M20 -> 358,321,427.00 | N17: 283,942,770.00
D18: Местный бюджет | E18: 256,965,048.66 | F18: =F22+F26+F29+F30+F31+F32 -> 160,000.00 | G18: =G22+G26+G29+G30+G31+G32 -> 0.00 | H18: 8,390,213.33 | I18: 8,602,042.05 | J18: 7,422,656.78 | K18: =K22+K26+K29+K30+K31+K32+K33 -> 109,330,328.10 | L18: =L22+L26+L29+L30+L31+L32+L33 -> 69,138,911.40 | M18: =M22+M26+M29+M30+M31+M32+M33 -> 30,031,127.00 | N18: 23,889,770.00
D19: Областной бюджет | E19: 713,779,500.00 | F19: =F23+F27 -> 0.00 | G19: =G23+G27 -> 0.00 | H19: 0.00 | I19: 21,933,500.00 | J19: 17,064,100.00 | K19: 3,974,100.00 | L19: =L23+L27 -> 82,464,500.00 | M19: =M23+M27 -> 328,290,300.00 | N19: 260,053,000.00
D20: Средства Фонда | E20: 1,638,299,622.75 | F20: =F24+F28 -> 0.00 | G20: =G24+G28 -> 0.00 | H20: 60,795,371.44 | I20: 502,376,777.61 | J20: 317,605,873.42 | K20: 698,327,751.56 | L20: 59,193,848.72 | M20: =M24+M28 -> 0.00 | N20: 0.00
B21: Основное мероприятие 1.1. Переселение граждан, проживающих в домах, признанных непригодными для проживания | C21: Отдел по управлению жилищным фондом комитета по городскому хозяйству администрации города | D21: Всего: | E21: 2,586,557,624.75 | F21: =F22+F23+F24 -> 0.00 | G21: 0.00 | H21: =H22+H23+H24 -> 60,795,371.44 | I21: =I22+I23+I24 -> 524,588,486.33 | J21: =J22+J23+J24 -> 341,238,130.20 | K21: =K22+K23+K24 -> 810,774,679.66 | L21: =L22+L23+L24 -> 207,866,760.12 | M21: 357,836,427.00 | N21: =N22+N23+N24 -> 283,457,770.00
D22: Местный бюджет | E22: 234,478,502.00 | F22: 0.00 | G22: 0.00 | H22: 0.00 | I22: 278,208.72 | J22: 6,568,156.78 | K22: 108,472,828.10 | L22: 66,208,411.40 | M22: 29,546,127.00 | N22: 23,404,770.00
D23: Областной бюджет | E23: 713,779,500.00 | F23: 0.00 | G23: 0.00 | H23: 0.00 | I23: 21,933,500.00 | J23: 17,064,100.00 | K23: 3,974,100.00 | L23: 82,464,500.00 | M23: 328,290,300.00 | N23: 260,053,000.00
D24: Средства Фонда | E24: =SUM(F24:N24) -> 1,638,299,622.75 | F24: 0.00 | G24: 0.00 | H24: 60,795,371.44 | I24: 502,376,777.61 | J24: 317,605,873.42 | K24: 698,327,751.56 | L24: 59,193,848.72 | M24: 0.00 | N24: 0.00
B25: Основное мероприятие 1.2. Снос аварийного жилищного фонда, признанного после 01.01. 2012 года в установленном порядке аварийным и подлежащим сносу, в связи с физическим износом в процессе его эксплуатации | C25: Отдел по управлению жилищным фондом комитета по городскому хозяйству администрации города | D25: Всего: | E25: 3,277,000.00 | F25: =F26+F27+F28 -> 0.00 | G25: =G26+G27+G28 -> 0.00 | H25: =H26+H27+H28 -> 0.00 | I25: 0.00 | J25: 0.00 | K25: 0.00 | L25: =L26+L27+L28 -> 2,587,000.00 | M25: 345,000.00 | N25: 345,000.00
D26: Местный бюджет | E26: 3,277,000.00 | F26: 0.00 | G26: 0.00 | H26: 0.00 | I26: 0.00 | J26: 0.00 | K26: 0.00 | L26: 2,587,000.00 | M26: 345,000.00 | N26: 345,000.00
D27: Областной бюджет | E27: 0.00 | F27: 0.00 | G27: 0.00 | H27: 0.00 | I27: 0.00 | J27: 0.00 | K27: 0.00 | L27: 0.00 | M27: 0.00 | N27: 0.00
D28: Средства Фонда | E28: 0.00 | F28: 0.00 | G28: 0.00 | H28: 0.00 | I28: 0.00 | J28: 0.00 | K28: 0.00 | L28: 0.00 | M28: 0.00 | N28: 0.00
B29: Основное мероприятие 1.3. Обследование технического состояния и выдача заключений на жилые дома | C29: Отдел по управлению жилищным фондом комитета по городскому хозяйству администрации города | D29: Местный бюджет | E29: 1,200,500.00 | F29: 160,000.00 | G29: 0.00 | H29: 530,000.00 | I29: 12,000.00 | J29: 70,000.00 | K29: 60,000.00 | L29: 88,500.00 | M29: 140,000.00 | N29: 140,000.00
B30: Основное мероприятие 1.4. Изготовление информационных таблиц на многоквартирные дома | C30: Отдел по управлению жилищным фондом комитета по городскому хозяйству администрации города | D30: Местный бюджет | E30: 2,400.00 | F30: 0.00 | G30: 0.00 | H30: 2,400.00 | I30: 0.00 | J30: 0.00 | K30: 0.00 | L30: 0.00 | M30: 0.00 | N30: 0.00
B31: Основное мероприятие 1.5. "Проектирование строительства многоквартирных домов" | C31: МКУ «Городское управление капитального строительства» | D31: Местный бюджет | E31: 17,286,666.66 | F31: 0.00 | G31: 0.00 | H31: 7,833,333.33 | I31: 8,283,333.33 | J31: 690,000.00 | K31: 240,000.00 | L31: 240,000.00 | M31: 0.00 | N31: 0.00
B32: Основное мероприятие 1.6. Оценка рыночной стоимости жилых помещений, признанных аварийными до 01.01.2017 года | C32: Отдел по управлению жилищным фондом комитета по городскому хозяйству администрации города | D32: Местный бюджет | E32: 322,480.00 | F32: 0.00 | G32: 0.00 | H32: 24,480.00 | I32: 28,500.00 | J32: 94,500.00 | K32: 160,000.00 | L32: 15,000.00 | M32: 0.00 | N32: 0.00
B33: Основное мероприятие 1.7. Разработка проектно-сметной документации на снос/демонтаж аварийных объектов капитального строительства | C33: Отдел по управлению жилищным фондом комитета по городскому хозяйству администрации города | D33: Местный бюджет | E33: =F33+G33+H33+I33+J33+K33+L33+N33 -> 397,500.00 | F33: 0.00 | G33: 0.00 | H33: 0.00 | I33: 0.00 | J33: 0.00 | K33: 397,500.00 | L33: 0.00 | M33: 0.00 | N33: 0.00
B34: Подпрограмма 2 «Обеспечение жильем молодых семей» на 2019-2020 годы | C34: Отдел спорта и молодежной политики управления по социально-экономическим вопросам администрации города | D34: Всего: | E34: =SUM(F34:N34) -> 20,079,828.44 | F34: =F35+F37+F36 -> 4,595,095.00 | G34: =G35+G36+G37 -> 15,484,733.44 | H34: 0.00 | I34: =I35+I36+I37 -> 0.00 | J34: 0.00 | K34: =K35+K36+K37 -> 0.00 | L34: 0.00 | M34: 0.00 | N34: 0.00
D35: Местный бюджет | E35: 4,327,470.33 | F35: =F39+F43 -> 1,106,645.77 | G35: =G39+G43 -> 3,220,824.56 | H35: 0.00 | I35: 0.00 | J35: 0.00 | K35: 0.00 | L35: 0.00 | M35: =M39+M43 -> 0.00 | N35: 0.00
D36: Областной бюджет | E36: 12,860,487.39 | F36: =F40+F44 -> 1,997,892.74 | G36: =G40+G44 -> 10,862,594.65 | H36: 0.00 | I36: 0.00 | J36: 0.00 | K36: 0.00 | L36: 0.00 | M36: =M40+M44 -> 0.00 | N36: 0.00
D37: Федеральный бюджет | E37: 2,891,870.72 | F37: =F41+F45 -> 1,490,556.49 | G37: =G41+G45 -> 1,401,314.23 | H37: 0.00 | I37: 0.00 | J37: 0.00 | K37: 0.00 | L37: 0.00 | M37: =M41+M45 -> 0.00 | N37: 0.00
B38: Основное мероприятие 2.1. Предоставление молодым семьям - участникам подпрограммы социальных выплат на приобретение (строительство) жилья | C38: Отдел спорта и молодежной политики управления по социально-экономическим вопросам администрации города | D38: Всего: | E38: 20,079,828.44 | F38: =F39+F40+F41 -> 4,595,095.00 | G38: =G39+G40+G41 -> 15,484,733.44 | H38: =H39+H40 -> 0.00 | I38: 0.00 | J38: 0.00 | K38: 0.00 | L38: =L39+L40 -> 0.00 | M38: 0.00 | N38: 0.00
D39: Местный бюджет | E39: 4,327,470.33 | F39: 1,106,645.77 | G39: 3,220,824.56 | H39: 0.00 | I39: 0.00 | J39: 0.00 | K39: 0.00 | L39: 0.00 | M39: 0.00 | N39: 0.00
D40: Областной бюджет | E40: 12,860,487.39 | F40: 1,997,892.74 | G40: 10,862,594.65 | H40: 0.00 | I40: 0.00 | J40: 0.00 | K40: 0.00 | L40: 0.00 | M40: 0.00 | N40: 0.00
D41: Федеральный бюджет | E41: 2,891,870.72 | F41: 1,490,556.49 | G41: 1,401,314.23 | H41: 0.00 | I41: 0.00 | J41: 0.00 | K41: 0.00 | L41: 0.00 | M41: 0.00 | N41: 0.00
B42: Основное мероприятие 2.2. Предоставление молодым семьям - участникам Подпрограммы социальных выплат на мероприятия по улучшению жилищных условий (Субсидии местным бюджетам на мероприятия по улучшению жилищных условий молодых семей) | C42: Отдел спорта и молодежной политики управления по социально-экономическим вопросам администрации города | D42: Всего: | E42: 0.00 | F42: =F43+F44+F45 -> 0.00 | G42: =G43+G44+G45 -> 0.00 | H42: 0.00 | I42: 0.00 | J42: 0.00 | K42: 0.00 | L42: =L43+L44+L45 -> 0.00 | M42: =M43+M44+M45 -> 0.00 | N42: 0.00
D43: Местный бюджет | E43: 0.00 | F43: 0.00 | G43: 0.00 | H43: 0.00 | I43: 0.00 | J43: 0.00 | K43: 0.00 | L43: 0.00 | M43: 0.00 | N43: 0.00
D44: Областной бюджет | E44: 0.00 | F44: 0.00 | G44: 0.00 | H44: 0.00 | I44: 0.00 | J44: 0.00 | K44: 0.00 | L44: 0.00 | M44: 0.00 | N44: 0.00
D45: Федеральный бюджет | E45: 0.00 | F45: 0.00 | G45: 0.00 | H45: 0.00 | I45: 0.00 | J45: 0.00 | K45: 0.00 | L45: 0.00 | M45: 0.00 | N45: 0.00
B46: Подпрограмма 3 «Повышение устойчивости жилых домов, основных объектов и систем жизнеобеспечения» на 2022 – 2027 годы | C46: МКУ «Городское управление капитального строительства» | D46: Всего: | E46: 0.00 | F46: =F48 -> 0.00 | G46: =G48 -> 0.00 | H46: 0.00 | I46: 0.00 | J46: 0.00 | K46: =K48 -> 0.00 | L46: =L48 -> 0.00 | M46: =M48 -> 0.00 | N46: =N48 -> 0.00
D47: Местный бюджет | E47: 0.00 | F47: 0.00 | G47: 0.00 | H47: 0.00 | I47: 0.00 | J47: 0.00 | K47: 0.00 | L47: 0.00 | M47: 0.00 | N47: 0.00
B48: Основное мероприятие 3.1. Строительство сейсмостойких жилых домов | C48: МКУ «Городское управление капитального строительства» | D48: Местный бюджет | E48: 0.00 | F48: 0.00 | G48: 0.00 | H48: 0.00 | I48: 0.00 | J48: 0.00 | K48: 0.00 | L48: 0.00 | M48: 0.00 | N48: 0.00 | O48: »
B51: Мэр города | F51: М.В Торопкин
